fUST/lending_fUST_20240706
["ID","MTS","AMOUNT","RATE_DAILY","PERIOD"]
[331319317,1720219843963,-500.0,0.00049314,120]
[331319318,1720219843973,-500.0,0.00049314,120]
[331319319,1720219843983,-197.24356065,0.00049314,120]
[331319320,1720219843992,-500.0,0.00049314,120]
[331319321,1720219844002,-500.0,0.00049314,120]
[331319322,1720219844013,-500.0,0.00049314,120]
[331319323,1720219844022,-500.0,0.00049314,120]
[331319324,1720219844033,-500.0,0.00049314,120]
[331319325,1720219844044,-500.0,0.00049314,120]
[331319326,1720219844054,-500.0,0.00049314,120]
[331319327,1720219844064,-500.0,0.00049314,120]
[331319328,1720219844073,-500.0,0.00049314,120]
[331319329,1720219844082,-500.0,0.00049314,120]
[331319330,1720219844092,-500.0,0.00049314,120]
[331319331,1720219844102,-500.0,0.00049314,120]
[331319332,1720219844111,-500.0,0.00049314,120]
[331319333,1720219844121,-500.0,0.00049314,120]
[331319334,1720219844130,-450.0,0.00049314,120]
[331319335,1720219844139,-500.0,0.00049314,120]
[331319336,1720219844149,-500.0,0.00049314,120]
[331319337,1720219844159,-500.0,0.00049314,120]
[331319338,1720219844169,-500.0,0.00049314,120]
[331319339,1720219844357,-500.0,0.00049314,120]
[331319340,1720219844368,-500.0,0.00049314,120]
[331319341,1720219844377,-500.0,0.00049314,120]
[331319342,1720219844386,-500.0,0.00049314,120]
[331319343,1720219844398,-500.0,0.00049314,120]
[331319344,1720219844408,-490.15,0.00049314,120]
[331319345,1720219844419,-44209.7161742,0.00049315,61]
[331319346,1720219845049,-153.0,0.00047123,120]
[331319347,1720219845059,-508.68265276,0.00049315,61]
[331319348,1720219845068,-13370.54440484,0.00049315,61]
[331319349,1720219845083,-269.350406,0.00049315,61]
[331319350,1720219845095,-1018.34513661,0.00049315,61]
[331319432,1720219852803,-2210.47713129,0.000451,120]
[331319433,1720219852814,-1728.3534901,0.000451,120]
[331319434,1720219852826,-153.0,0.00047123,120]
[331319435,1720219852836,-500.0,0.00049304,7]
[331319436,1720219852845,-500.0,0.00049304,7]
[331319437,1720219852854,-420.71967744,0.00049304,7]
[331319438,1720219852864,-500.0,0.00049304,7]
[331319439,1720219852873,-500.0,0.00049304,7]
[331319440,1720219852883,-1277.21,0.00049305,3]
[331319441,1720219852892,-4365.90545004,0.00049315,61]
[331319442,1720219852902,-347.88153597,0.00049315,120]
[331319443,1720219852911,-500.0,0.00049315,120]
[331319444,1720219852920,-500.0,0.00049315,120]
[331319445,1720219852929,-500.0,0.00049315,120]
[331319446,1720219852939,-500.0,0.00049315,120]
[331319447,1720219852948,-500.0,0.00049315,120]
[331319448,1720219852958,-500.0,0.00049315,120]
[331319449,1720219852967,-500.0,0.00049315,120]
[331319450,1720219852976,-500.0,0.00049315,120]
[331319451,1720219852985,-348.14638897,0.00049315,120]
[331319452,1720219852995,-1997.06,0.00049315,120]
[331319453,1720219853005,-500.0,0.00049315,120]
[331319454,1720219853015,-500.0,0.00049315,120]
[331319455,1720219853027,-500.0,0.00049315,120]
[331319456,1720219853037,-500.0,0.00049315,120]
[331319457,1720219853047,-500.0,0.00049315,120]
[331319458,1720219853057,-500.0,0.00049315,120]
[331319459,1720219853066,-500.0,0.00049315,120]
[331319460,1720219853076,-597.01788008,0.00049315,120]
[331319461,1720219853085,-12599.91,0.00049315,120]
[331319462,1720219853094,-500.0,0.00049315,120]
[331319463,1720219853103,-501.77381646,0.00049315,120]
[331319464,1720219853112,-500.0,0.00049315,120]
[331319465,1720219853122,-500.0,0.00049315,60]
[331319466,1720219853131,-500.0,0.00049315,120]
[331319467,1720219853140,-500.0,0.00049315,120]
[331319468,1720219853150,-500.0,0.00049315,120]
[331319469,1720219853159,-500.0,0.00049315,120]
[331319470,1720219853168,-500.0,0.00049315,120]
[331319471,1720219853178,-1414.34,0.00049315,120]
[331319472,1720219853187,-550.3,0.00049315,120]
[331319473,1720219853196,-500.0,0.00049315,120]
[331319474,1720219853206,-500.0,0.00049315,120]
[331319475,1720219853216,-500.0,0.00049315,3]
[331319476,1720219853225,-500.0,0.00049315,120]
[331319477,1720219853235,-500.0,0.00049315,120]
[331319478,1720219853244,-500.0,0.00049315,120]
[331319479,1720219853254,-500.0,0.00049315,120]
[331319480,1720219853264,-962.48,0.00049315,120]
[331319481,1720219853274,-501.74191606,0.00049315,120]
[331319482,1720219853284,-500.0,0.00049315,120]
[331319483,1720219853293,-663.23,0.00049315,120]
[331319484,1720219853302,-500.0,0.00049315,120]
[331319485,1720219853312,-500.0,0.00049315,120]
[331319486,1720219853326,-521.22,0.00049315,120]
[331319487,1720219853336,-500.0,0.00049315,120]
[331319488,1720219853345,-500.0,0.00049315,120]
[331319489,1720219853356,-500.0,0.00049315,120]
[331319490,1720219853365,-500.0,0.00049315,120]
[331319491,1720219853375,-500.0,0.00049315,120]
[331319492,1720219853384,-500.0,0.00049315,120]
[331319493,1720219853396,-500.0,0.00049315,120]
[331319494,1720219853409,-500.0,0.00049315,120]
[331319495,1720219853419,-500.0,0.00049315,120]
[331319496,1720219853428,-500.0,0.00049315,120]
[331319497,1720219853437,-414.13985495,0.00049315,120]
[331319498,1720219853447,-500.0,0.00049315,120]
[331319499,1720219853456,-500.0,0.00049315,120]
[331319500,1720219853466,-500.0,0.00049315,120]
[331319501,1720219853475,-868.12,0.00049315,120]
[331319502,1720219853484,-500.0,0.00049315,120]
[331319503,1720219853494,-1157.58,0.00049315,120]
[331319504,1720219853505,-500.0,0.00049315,120]
[331319505,1720219853514,-508.49,0.00049315,120]
[331319506,1720219853524,-633.28,0.00049315,120]
[331319507,1720219853533,-500.0,0.00049315,120]
[331319508,1720219853544,-500.0,0.00049315,120]
[331319509,1720219853553,-500.0,0.00049315,120]
[331319510,1720219853564,-618.97,0.00049315,120]
[331319511,1720219853574,-618.68,0.00049315,120]
[331319512,1720219853583,-500.0,0.00049315,120]
[331319513,1720219853592,-501.75183292,0.00049315,120]
[331319514,1720219853601,-500.0,0.00049315,120]
[331319515,1720219853610,-500.0,0.00049315,120]
[331319516,1720219853620,-500.0,0.00049315,120]
[331319517,1720219853629,-500.0,0.00049315,120]
[331319518,1720219853638,-501.36627775,0.00049315,120]
[331319519,1720219853648,-500.0,0.00049315,120]
[331319520,1720219853657,-500.0,0.00049315,120]
[331319521,1720219853667,-500.0,0.00049315,120]
[331319522,1720219853676,-1118.84,0.00049315,120]
[331319523,1720219853686,-500.0,0.00049315,120]
[331319524,1720219853696,-500.0,0.00049315,120]
[331319525,1720219853705,-500.0,0.00049315,120]
[331319526,1720219853714,-500.0,0.00049315,120]
[331319527,1720219853723,-188.27053171,0.00049315,120]
[331319528,1720219853733,-500.0,0.00049315,120]
[331319529,1720219853742,-500.0,0.00049315,120]
[331319530,1720219853752,-500.0,0.00049315,120]
[331319531,1720219853762,-730.74,0.00049315,120]
[331319532,1720219853772,-500.0,0.00049315,30]
[331319533,1720219853782,-566.52,0.00049315,120]
[331319534,1720219853792,-1342.62,0.00049315,60]
[331319535,1720219853802,-500.0,0.00049315,120]
[331319536,1720219853812,-500.0,0.00049315,120]
[331319537,1720219853822,-500.0,0.00049315,120]
[331319538,1720219853831,-524.59,0.00049315,120]
[331319539,1720219853841,-500.0,0.00049315,120]
[331319540,1720219853851,-501.33064968,0.00049315,120]
[331319541,1720219853861,-500.0,0.00049315,120]
[331319542,1720219853871,-1616.53,0.00049315,120]
[331319543,1720219853881,-501.24546415,0.00049315,120]
[331319544,1720219853890,-185.081782,0.00049315,14]
[331319545,1720219853900,-500.0,0.00049315,120]
[331319546,1720219853910,-500.0,0.00049315,120]
[331319547,1720219853919,-500.0,0.00049315,120]
[331319548,1720219853929,-500.0,0.00049315,120]
[331319549,1720219853938,-500.0,0.00049315,120]
[331319550,1720219853949,-500.0,0.00049315,120]
[331319551,1720219853960,-500.0,0.00049315,120]
[331319552,1720219853970,-1430.24,0.00049315,120]
[331319553,1720219853980,-1280.71,0.00049315,120]
[331319554,1720219853989,-500.0,0.00049315,120]
[331319555,1720219853999,-500.0,0.00049315,120]
[331319556,1720219854008,-550.45402969,0.00049315,120]
[331319557,1720219854018,-500.0,0.00049315,120]
[331319558,1720219854028,-500.0,0.00049315,120]
[331319559,1720219854037,-500.0,0.00049315,120]
[331319560,1720219854047,-585.69,0.00049315,120]
[331319561,1720219854057,-500.0,0.00049315,120]
[331319562,1720219854067,-500.0,0.00049315,120]
[331319563,1720219854077,-500.0,0.00049315,120]
[331319564,1720219854086,-588.95,0.00049315,120]
[331319565,1720219854096,-500.0,0.00049315,120]
[331319566,1720219854107,-503.37965649,0.00049315,120]
[331319567,1720219854116,-500.0,0.00049315,120]
[331319568,1720219854126,-500.0,0.00049315,120]
[331319569,1720219854135,-500.0,0.00049315,120]
[331319570,1720219854145,-500.0,0.00049315,120]
[331319571,1720219854155,-500.0,0.00049315,120]
[331319572,1720219854164,-631.13,0.00049315,120]
[331319573,1720219854173,-500.0,0.00049315,120]
[331319574,1720219854183,-500.0,0.00049315,120]
[331319575,1720219854192,-500.0,0.00049315,120]
[331319576,1720219854202,-500.0,0.00049315,120]
[331319577,1720219854211,-500.0,0.00049315,120]
[331319578,1720219854222,-490.81047358,0.00049315,120]
[331319579,1720219854231,-722.27,0.00049315,120]
[331319580,1720219854241,-500.0,0.00049315,120]
[331319581,1720219854251,-500.0,0.00049315,120]
[331319582,1720219854260,-500.0,0.00049315,120]
[331319583,1720219854270,-500.0,0.00049315,120]
[331319584,1720219854279,-500.0,0.00049315,120]
[331319585,1720219854289,-997.64,0.00049315,120]
[331319586,1720219854300,-500.0,0.00049315,120]
[331319587,1720219854311,-504.47681493,0.00049315,120]
[331319588,1720219854325,-500.0,0.00049315,120]
[331319589,1720219854334,-787.83,0.00049315,120]
[331319590,1720219854344,-500.0,0.00049315,120]
[331319591,1720219854354,-500.0,0.00049315,120]
[331319592,1720219854364,-500.0,0.00049315,120]
[331319593,1720219854373,-703.18,0.00049315,120]
[331319594,1720219854383,-500.0,0.00049315,120]
[331319595,1720219854394,-505.48716138,0.00049315,120]
[331319596,1720219854403,-500.0,0.00049315,120]
[331319597,1720219854413,-1396.72,0.00049315,120]
[331319598,1720219854423,-1243.25,0.00049315,120]
[331319599,1720219854432,-500.0,0.00049315,120]
[331319600,1720219854441,-500.0,0.00049315,120]
[331319601,1720219854451,-500.0,0.00049315,120]
[331319602,1720219854460,-500.0,0.00049315,120]
[331319603,1720219854469,-737.12,0.00049315,120]
[331319604,1720219854479,-500.0,0.00049315,120]
[331319605,1720219854488,-543.59,0.00049315,120]
[331319606,1720219854498,-500.0,0.00049315,120]
[331319607,1720219854510,-500.0,0.00049315,120]
[331319608,1720219854520,-431.87590484,0.00049315,120]
[331319609,1720219854530,-500.0,0.00049315,120]
[331319610,1720219854541,-1767.56,0.00049315,120]
[331319611,1720219854552,-819.63,0.00049315,120]
[331319612,1720219854562,-500.0,0.00049315,120]
[331319613,1720219854572,-500.0,0.00049315,120]
[331319614,1720219854582,-500.0,0.00049315,120]
[331319615,1720219854592,-500.0,0.00049315,120]
[331319616,1720219854602,-500.0,0.00049315,120]
[331319617,1720219854612,-500.0,0.00049315,120]
[331319618,1720219854623,-500.0,0.00049315,120]
[331319619,1720219854634,-500.0,0.00049315,120]
[331319620,1720219854644,-500.0,0.00049315,120]
[331319621,1720219854654,-500.0,0.00049315,120]
[331319622,1720219854663,-500.0,0.00049315,120]
[331319623,1720219854673,-500.0,0.00049315,120]
[331319624,1720219854683,-500.0,0.00049315,120]
[331319625,1720219854692,-995.69,0.00049315,120]
[331319626,1720219854702,-500.0,0.00049315,120]
[331319627,1720219854712,-500.0,0.00049315,120]
[331319628,1720219854723,-500.0,0.00049315,120]
[331319629,1720219854733,-500.0,0.00049315,120]
[331319630,1720219854742,-500.0,0.00049315,90]
[331319631,1720219854753,-500.0,0.00049315,120]
[331319632,1720219854762,-500.0,0.00049315,120]
[331319633,1720219854772,-500.0,0.00049315,120]
[331319634,1720219854782,-500.0,0.00049315,120]
[331319635,1720219854793,-10799.68,0.00049315,120]
[331319636,1720219854806,-500.0,0.00049315,120]
[331319637,1720219854815,-517.93,0.00049315,120]
[331319638,1720219854826,-1199.36,0.00049315,120]
[331319639,1720219854836,-192.89530615,0.00049315,120]
[331319640,1720219854844,-500.0,0.00049315,120]
[331319641,1720219854854,-500.0,0.00049315,120]
[331319642,1720219854863,-500.0,0.00049315,120]
[331319643,1720219854873,-500.0,0.00049315,120]
[331319644,1720219854882,-500.0,0.00049315,120]
[331319645,1720219854891,-500.0,0.00049315,120]
[331319646,1720219854901,-500.0,0.00049315,120]
[331319647,1720219854911,-1006.24078816,0.00049315,120]
[331319648,1720219854921,-500.0,0.00049315,120]
[331319649,1720219854931,-500.0,0.00049315,120]
[331319650,1720219854941,-500.0,0.00049315,2]
[331319651,1720219854950,-500.0,0.00049315,120]
[331319652,1720219854960,-503.36785932,0.00049315,120]
[331319653,1720219854970,-500.0,0.00049315,120]
[331319654,1720219854979,-500.0,0.00049315,120]
[331319655,1720219854989,-500.0,0.00049315,120]
[331319656,1720219854999,-796.53,0.00049315,120]
[331319657,1720219855009,-500.0,0.00049315,120]
[331319658,1720219855018,-500.0,0.00049315,120]
[331319659,1720219855028,-500.0,0.00049315,120]
[331319660,1720219855038,-845.29,0.00049315,120]
[331319661,1720219855049,-500.0,0.00049315,120]
[331319662,1720219855058,-500.0,0.00049315,120]
[331319663,1720219855067,-500.0,0.00049315,120]
[331319664,1720219855076,-500.0,0.00049315,120]
[331319665,1720219855086,-500.0,0.00049315,120]
[331319666,1720219855095,-151.0,0.00049315,14]
[331319667,1720219855104,-179.592768,0.00049315,14]
[331319668,1720219855113,-500.0,0.00049315,120]
[331319669,1720219855122,-500.0,0.00049315,120]
[331319670,1720219855131,-500.0,0.00049315,120]
[331319671,1720219855140,-500.0,0.00049315,120]
[331319672,1720219855150,-500.0,0.00049315,120]
[331319673,1720219855159,-500.0,0.00049315,120]
[331319674,1720219855168,-500.0,0.00049315,20]
[331319675,1720219855177,-500.0,0.00049315,120]
[331319676,1720219855186,-500.0,0.00049315,22]
[331319677,1720219855195,-607.42,0.00049315,120]
[331319678,1720219855205,-1202.88,0.00049315,120]
[331319679,1720219855214,-151.0,0.00049315,14]
[331319680,1720219855222,-500.0,0.00049315,120]
[331319681,1720219855231,-1317.09,0.00049315,120]
[331319682,1720219855240,-354.8589622,0.00049315,120]
[331319683,1720219855249,-500.0,0.00049315,120]
[331319684,1720219855258,-500.0,0.00049315,120]
[331319685,1720219855267,-500.0,0.00049315,120]
[331319686,1720219855276,-597.20473165,0.00049315,120]
[331319687,1720219855286,-500.0,0.00049315,120]
[331319688,1720219855296,-500.0,0.00049315,120]
[331319689,1720219855305,-320.68,0.00049315,120]
[331319690,1720219855315,-500.0,0.00049315,120]
[331319691,1720219855326,-1086.2,0.00049315,120]
[331319692,1720219855335,-500.0,0.00049315,120]
[331319693,1720219855344,-633.61,0.00049315,120]
[331319694,1720219855352,-500.0,0.00049315,120]
[331319695,1720219855362,-500.0,0.00049315,120]
[331319696,1720219855370,-500.0,0.00049315,120]
[331319697,1720219855380,-500.0,0.00049315,120]
[331319698,1720219855389,-729.14,0.00049315,120]
[331319699,1720219855400,-500.0,0.00049315,120]
[331319700,1720219855410,-489.19997459,0.00049315,120]
[331319701,1720219855419,-500.0,0.00049315,120]
[331319702,1720219855429,-999.0,0.00049315,120]
[331319703,1720219855439,-500.0,0.00049315,120]
[331319704,1720219855448,-500.0,0.00049315,120]
[331319705,1720219855458,-500.0,0.00049315,120]
[331319706,1720219855467,-2946.51,0.00049315,120]
[331319707,1720219855477,-685.29,0.00049315,120]
[331319708,1720219855644,-500.0,0.00049315,120]
[331319709,1720219855654,-935.21,0.00049315,120]
[331319710,1720219855663,-500.0,0.00049315,120]
[331319711,1720219855672,-500.0,0.00049315,120]
[331319712,1720219855682,-7125.91,0.00049315,120]
[331319713,1720219855691,-500.0,0.00049315,120]
[331319714,1720219855700,-877.02,0.00049315,120]
[331319715,1720219855709,-200.0,0.00049315,7]
[331319716,1720219855724,-500.0,0.00049315,120]
[331319717,1720219855734,-645.01,0.00049315,120]
[331319718,1720219855744,-3556.21,0.00049315,120]
[331319719,1720219855753,-5764.33,0.00049315,120]
[331319720,1720219855762,-500.0,0.00049315,120]
[331319721,1720219855771,-500.0,0.00049315,120]
[331319722,1720219855781,-26094.61,0.00049315,120]
[331319723,1720219855790,-580.1,0.00049315,120]
[331319724,1720219855800,-500.0,0.00049315,120]
[331319725,1720219855809,-500.0,0.00049315,120]
[331319726,1720219855818,-500.0,0.00049315,120]
[331319727,1720219855828,-500.0,0.00049315,120]
[331319728,1720219855837,-500.0,0.00049315,120]
[331319729,1720219855846,-500.0,0.00049315,120]
[331319730,1720219855856,-500.0,0.00049315,120]
[331319731,1720219855865,-169.910115,0.00049315,14]
[331319732,1720219855875,-169.910115,0.00049315,14]
[331319733,1720219855884,-1314.41,0.00049315,120]
[331319734,1720219855893,-500.0,0.00049315,120]
[331319735,1720219855902,-500.0,0.00049315,120]
[331319736,1720219855912,-523.14,0.00049315,120]
[331319737,1720219855921,-627.36491239,0.00049315,120]
[331319738,1720219855931,-500.0,0.00049315,120]
[331319739,1720219855940,-735.19,0.00049315,120]
[331319740,1720219855950,-500.0,0.00049315,120]
[331319741,1720219855959,-500.0,0.00049315,120]
[331319742,1720219855968,-500.0,0.00049315,120]
[331319743,1720219855978,-2416.93,0.00049315,21]
[331319744,1720219855987,-1615.76,0.00049315,120]
[331319745,1720219855996,-151.0,0.00049315,14]
[331319746,1720219856006,-151.0,0.00049315,14]
[331319747,1720219856015,-500.0,0.00049315,120]
[331319748,1720219856024,-500.0,0.00049315,120]
[331319749,1720219856034,-777.12,0.00049315,120]
[331319750,1720219856043,-500.0,0.00049315,120]
[331319751,1720219856054,-3923.21,0.00049315,120]
[331319752,1720219856063,-500.0,0.00049315,120]
[331319753,1720219856072,-500.0,0.00049315,120]
[331319754,1720219856082,-500.0,0.00049315,120]
[331319755,1720219856091,-1218.4,0.00049315,120]
[331319756,1720219856101,-500.0,0.00049315,120]
[331319757,1720219856111,-618.76,0.00049315,120]
[331319758,1720219856120,-500.0,0.00049315,120]
[331319759,1720219856129,-500.0,0.00049315,120]
[331319760,1720219856139,-2234.9,0.00049315,120]
[331319761,1720219856149,-500.0,0.00049315,120]
[331319762,1720219856158,-2932.36,0.00049315,120]
[331319763,1720219856168,-563.88501302,0.00049315,120]
[331319764,1720219856177,-6196.48,0.00049315,120]
[331319765,1720219856187,-500.0,0.00049315,120]
[331319766,1720219856196,-526.99,0.00049315,120]
[331319767,1720219856205,-500.0,0.00049315,120]
[331319768,1720219856214,-4011.11,0.00049315,120]
[331319769,1720219856223,-500.0,0.00049315,120]
[331319770,1720219856233,-505.82178899,0.00049315,120]
[331319771,1720219856242,-500.0,0.00049315,120]
[331319772,1720219856253,-500.0,0.00049315,120]
[331319773,1720219856262,-541.66,0.00049315,120]
[331319774,1720219856271,-500.0,0.00049315,120]
[331319775,1720219856280,-151.0,0.00049315,14]
[331319776,1720219856289,-151.0,0.00049315,14]
[331319777,1720219856300,-500.0,0.00049315,120]
[331319778,1720219856311,-500.0,0.00049315,120]
[331319779,1720219856324,-500.0,0.00049315,120]
[331319780,1720219856335,-696.68,0.00049315,120]
[331319781,1720219856344,-500.0,0.00049315,120]
[331319782,1720219856353,-500.0,0.00049315,120]
[331319783,1720219856363,-151.0,0.00049315,14]
[331319784,1720219856371,-261.670358,0.00049315,14]
[331319785,1720219856381,-500.0,0.00049315,120]
[331319786,1720219856390,-507.67,0.00049315,120]
[331319787,1720219856401,-500.0,0.00049315,120]
[331319788,1720219856411,-500.0,0.00049315,120]
[331319789,1720219856421,-500.0,0.00049315,120]
[331319790,1720219856431,-500.0,0.00049315,120]
[331319791,1720219856440,-500.0,0.00049315,120]
[331319792,1720219856450,-500.0,0.00049315,120]
[331319793,1720219856460,-500.0,0.00049315,120]
[331319794,1720219856470,-500.0,0.00049315,120]
[331319795,1720219856481,-500.0,0.00049315,120]
[331319796,1720219856491,-500.0,0.00049315,120]
[331319797,1720219856501,-352.98,0.00049315,120]
[331319798,1720219856513,-500.0,0.00049315,120]
[331319799,1720219856523,-151.0,0.00049315,14]
[331319800,1720219856534,-500.0,0.00049315,120]
[331319801,1720219856544,-151.0,0.00049315,14]
[331319802,1720219856554,-353.088886,0.00049315,14]
[331319803,1720219856565,-500.0,0.00049315,120]
[331319804,1720219856575,-353.088886,0.00049315,14]
[331319805,1720219856586,-500.0,0.00049315,120]
[331319806,1720219856597,-500.0,0.00049315,120]
[331319807,1720219856606,-1349.11,0.00049315,120]
[331319808,1720219856617,-353.088886,0.00049315,14]
[331319809,1720219856626,-353.088886,0.00049315,14]
[331319810,1720219856637,-500.0,0.00049315,120]
[331319811,1720219856651,-520.0,0.00049315,120]
[331319812,1720219856661,-500.0,0.00049315,120]
[331319813,1720219856671,-500.0,0.00049315,120]
[331319814,1720219856680,-500.0,0.00049315,120]
[331319815,1720219856689,-574.193847,0.00049315,14]
[331319816,1720219856698,-574.193847,0.00049315,14]
[331319817,1720219856707,-1275.36,0.00049315,120]
[331319818,1720219856716,-1569.59,0.00049315,120]
[331319819,1720219856725,-500.0,0.00049315,120]
[331319820,1720219856735,-574.193847,0.00049315,14]
[331319821,1720219856744,-2799.91,0.00049315,120]
[331319822,1720219856753,-574.193847,0.00049315,14]
[331319823,1720219856763,-500.0,0.00049315,120]
[331319824,1720219856772,-500.0,0.00049315,120]
[331319825,1720219856781,-482.52281839,0.00049315,120]
[331319826,1720219856791,-907.93,0.00049315,120]
[331319827,1720219856802,-1358.39,0.00049315,120]
[331319828,1720219856810,-500.0,0.00049315,120]
[331319829,1720219856823,-500.0,0.00049315,120]
[331319830,1720219856832,-500.0,0.00049315,120]
[331319831,1720219856843,-2987.13,0.00049315,120]
[331319832,1720219856853,-506.48,0.00049315,120]
[331319833,1720219856862,-1367.69,0.00049315,120]
[331319834,1720219856872,-588.81,0.00049315,120]
[331319835,1720219856882,-151.0,0.00049315,14]
[331319836,1720219856891,-500.0,0.00049315,120]
[331319837,1720219856900,-500.0,0.00049315,120]
[331319838,1720219856910,-1188.36,0.00049315,120]
[331319839,1720219856922,-502.44,0.00049315,120]
[331319840,1720219856932,-502.92082567,0.00049315,120]
[331319841,1720219856941,-500.0,0.00049315,120]
[331319842,1720219856950,-500.0,0.00049315,120]
[331319843,1720219856960,-159.328673,0.00049315,14]
[331319844,1720219856969,-6236.92,0.00049315,120]
[331319845,1720219856978,-500.0,0.00049315,120]
[331319846,1720219856988,-500.0,0.00049315,120]
[331319847,1720219857005,-500.0,0.00049315,120]
[331319848,1720219857014,-500.0,0.00049315,120]
[331319849,1720219857023,-500.0,0.00049315,120]
[331319850,1720219857032,-500.0,0.00049315,120]
[331319851,1720219857041,-4150.24,0.00049315,120]
[331319852,1720219857051,-500.0,0.00049315,120]
[331319853,1720219857060,-500.0,0.00049315,120]
[331319854,1720219857069,-500.0,0.00049315,120]
[331319855,1720219857078,-500.0,0.00049315,120]
[331319856,1720219857087,-500.0,0.00049315,120]
[331319857,1720219857096,-500.0,0.00049315,120]
[331319858,1720219857105,-400.0,0.00049315,60]
[331319859,1720219857114,-154.6289612,0.00049315,2]
[331319860,1720219857123,-155.0,0.0004949,58]
[331319861,1720219857132,-999.0,0.00049589,120]
[331319862,1720219857142,-435.0,0.000498,27]
[331319863,1720219857151,-178.149452,0.00049819,30]
[331319864,1720219857160,-188.31976,0.00049819,30]
[331319865,1720219857169,-151.0,0.00049853,14]
[331319866,1720219857178,-151.0,0.00049853,14]
[331319867,1720219857187,-1997.06,0.00049863,120]
[331319868,1720219857196,-500.0,0.00049863,120]
[331319869,1720219857206,-500.0,0.00049863,120]
[331319870,1720219857215,-500.0,0.00049863,120]
[331319871,1720219857224,-507.09086502,0.00049863,120]
[331319872,1720219857233,-500.0,0.00049863,120]
[331319873,1720219857242,-500.0,0.00049863,120]
[331319874,1720219857251,-12599.91,0.00049863,120]
[331319875,1720219857260,-500.0,0.00049863,120]
[331319876,1720219857269,-500.0,0.00049863,60]
[331319877,1720219857278,-500.0,0.00049863,120]
[331319878,1720219857287,-500.0,0.00049863,120]
[331319879,1720219857296,-172.27036213,0.00049863,120]
[331319880,1720219857306,-1414.34,0.00049863,120]
[331319881,1720219857318,-550.3,0.00049863,120]
[331319882,1720219857327,-500.0,0.00049863,3]
[331319883,1720219857336,-500.0,0.00049863,120]
[331319884,1720219857345,-500.0,0.00049863,120]
[331319885,1720219857354,-962.48,0.00049863,120]
[331319886,1720219857369,-500.0,0.00049863,120]
[331319887,1720219857378,-663.23,0.00049863,120]
[331319888,1720219857387,-500.0,0.00049863,120]
[331319889,1720219857398,-500.0,0.00049863,120]
[331319890,1720219857407,-521.22,0.00049863,120]
[331319891,1720219857416,-500.0,0.00049863,120]
[331319892,1720219857425,-253.78171013,0.00049863,120]
[331319893,1720219857434,-500.0,0.00049863,120]
[331319894,1720219857443,-500.0,0.00049863,120]
[331319895,1720219857452,-500.0,0.00049863,120]
[331319896,1720219857461,-500.0,0.00049863,120]
[331319897,1720219857469,-500.0,0.00049863,120]